bitfinex-derivatives/quotes_ETHF0:USTF0_20250502
["timestamp","ask_amount","ask_price","bid_price","bid_amount"]
[1746213370014,2.36168786,1847.4,1847.3,11.96777691]
[1746213370315,2.36168786,1847.4,1847.3,13.64857691]
[1746213370517,1.27957786,1847.4,1847.3,13.64857691]
[1746213370815,0.42127786,1847.4,1847.3,13.64857691]
[1746213371113,1.50338786,1847.4,1847.3,13.64857691]
[1746213371315,1.50338786,1847.4,1847.3,6.45897]
[1746213371818,0.42127786,1847.4,1847.3,6.45897]
[1746213372318,2.01997786,1847.4,1847.3,6.45897]
[1746213373218,3.10208786,1847.4,1847.3,6.45897]
[1746213376620,1.50338786,1847.4,1847.3,6.45897]
[1746213377820,1.50338786,1847.4,1847.3,0.78219]
[1746213378128,1.0824,1846.9,1846.8,14.32134948]
[1746213378420,8.23647786,1846.9,1846.8,14.32134948]
[1746213378622,13.23647786,1846.9,1846.8,14.32134948]
[1746213379123,14.98227786,1846.9,1846.8,14.32134948]
[1746213380122,14.98227786,1846.9,1846.8,18.01734948]
[1746213380823,9.98227786,1846.9,1846.8,18.01734948]
[1746213381321,9.98227786,1846.9,1846.8,14.32134948]
[1746213381523,11.60600786,1846.9,1846.4,4.8289]
[1746213381821,1.08264,1846.5,1846.4,4.8289]
[1746213382123,1.50391786,1846.5,1846.4,8.5249]
[1746213383024,3.24071786,1846.5,1846.4,8.5249]
[1746213384919,3.24071786,1846.5,1846.4,5.3171]
[1746213386125,3.24071786,1846.5,1846.4,6.3998]
[1746213386727,3.24071786,1846.5,1846.4,5.3171]
[1746213387028,3.24071786,1846.5,1846.4,6.3998]
[1746213387220,3.24071786,1846.5,1846.4,5.3171]
[1746213388929,3.24071786,1846.5,1846.4,3.696]
[1746213390328,3.23739981,1846.5,1846.4,3.696]
[1746213396833,6.44519981,1846.5,1846.4,3.696]
[1746213397230,1.08281,1846.2,1846.1,3.2078]
[1746213397629,1.50076981,1846.2,1846.1,3.2078]
[1746213397828,1.50064709,1846.2,1846.1,3.2078]
[1746213398028,3.16624709,1846.2,1846.1,4.8376]
[1746213398234,3.16624709,1846.2,1846.1,5.92047]
[1746213398529,1.50064709,1846.2,1846.1,5.92047]
[1746213399128,1.50064709,1846.2,1846.1,4.8376]
[1746213399434,1.50064709,1846.2,1846.1,1.6298]
[1746213399933,3.16624709,1846.2,1846.1,1.6298]
[1746213402133,1.50064709,1846.2,1846.1,2.71267]
[1746213402333,1.50064709,1846.2,1846.1,1.6298]
[1746213403133,1.50064709,1846.2,1846.1,2.71267]
[1746213403534,1.50064709,1846.2,1846.1,1.6298]
[1746213409234,1.08287,1846.1,1846.0,3.696]
[1746213409442,1.08287,1846.1,1846.0,5.3568]
[1746213409938,1.50070709,1846.1,1846.0,5.3568]
[1746213412940,4.05090709,1846.1,1846.0,5.3568]
[1746213416039,4.05090709,1846.1,1846.0,3.696]
[1746213416841,4.05090709,1846.1,1846.0,5.2916]
[1746213421045,4.05090709,1846.1,1846.0,6.1198]
[1746213421541,1.08287,1846.1,1846.0,7.20273]
[1746213421747,1.50316119,1846.1,1846.0,7.20273]
[1746213421947,1.50316119,1846.1,1846.0,10.41053]
[1746213422650,0.42029119,1846.1,1846.0,10.41053]
[1746213422948,1.50316119,1846.1,1846.0,10.41053]
[1746213423449,0.42029119,1846.1,1846.0,10.41053]
[1746213423645,0.42029119,1846.1,1846.0,15.41053]
[1746213424647,1.08285,1846.2,1846.1,1.08287]
[1746213424851,1.08285,1846.2,1846.1,2.77347]
[1746213425051,1.50329844,1846.2,1846.1,2.77347]
[1746213425348,1.50329844,1846.2,1846.1,1.6906]
[1746213425542,1.50329844,1846.2,1846.1,2.77347]
[1746213428255,0.42044844,1846.2,1846.1,2.77347]
[1746213428455,1.50325844,1846.2,1846.1,2.77347]
[1746213428947,1.08287,1846.1,1846.0,6.9038]
[1746213429151,3.55857,1846.1,1846.0,6.9038]
[1746213429351,3.97901844,1846.1,1846.0,6.9038]
[1746213429950,3.97901844,1846.1,1846.0,3.696]
[1746213439860,7.49501844,1846.1,1846.0,3.696]
[1746213440259,12.49501844,1846.1,1846.0,2.42481]
[1746213440461,12.92825314,1846.1,1846.0,2.42481]
[1746213440660,12.49501844,1846.1,1846.0,2.42481]
[1746213441161,1.08311,1845.7,1845.6,1.7193]
[1746213441758,2.73301,1845.7,1845.6,1.7193]
[1746213441958,3.15345844,1845.7,1845.6,1.7193]
[1746213442258,3.15345844,1845.7,1845.5,41.6659]
[1746213442465,3.15351844,1845.6,1845.5,41.6659]
[1746213442658,3.15351844,1845.6,1845.5,43.3852]
[1746213443262,3.15351844,1845.6,1845.5,2.5852]
[1746213443451,1.50361844,1845.6,1845.5,2.5852]
[1746213445454,1.50361844,1845.6,1845.5,3.66842]
[1746213445766,0.42044844,1845.6,1845.5,3.66842]
[1746213446261,1.50361844,1845.6,1845.5,3.66842]
[1746213446958,0.42044844,1845.6,1845.5,6.87622]
[1746213447559,1.50361844,1845.6,1845.5,6.87622]
[1746213448267,1.50361844,1845.6,1845.5,5.793]
[1746213448456,1.50361844,1845.6,1845.5,6.87622]
[1746213449261,1.50361844,1845.6,1845.5,5.793]
[1746213449855,3.25051844,1845.6,1845.5,5.793]
[1746213450766,3.25051844,1845.6,1845.5,6.87622]
[1746213451063,3.25051844,1845.6,1845.5,5.793]
[1746213453056,3.25051844,1845.6,1845.5,2.5852]
[1746213453558,3.25051844,1845.6,1845.5,0.8659]
[1746213454863,3.25051844,1845.6,1845.5,2.5263]
[1746213456765,0.42044844,1845.6,1845.5,6.81732]
[1746213457769,1.08312,1845.7,1845.6,1.08317]
[1746213458063,2.79739,1845.8,1845.7,1.08311]
[1746213458460,1.08311,1845.7,1845.6,2.72675]
[1746213458665,1.08311,1845.7,1845.6,2.72672]
[1746213458858,1.50347021,1845.7,1845.6,2.72672]
[1746213459058,0.42036021,1845.7,1845.6,2.72672]
[1746213459370,1.50347021,1845.7,1845.6,2.72672]
[1746213462265,0.42036021,1845.7,1845.6,2.72672]
[1746213462463,1.50347021,1845.7,1845.6,2.72672]
[1746213463675,0.42036021,1845.7,1845.6,2.72672]
[1746213464272,1.083,1845.9,1845.8,1.08305]
[1746213464460,1.50352017,1845.9,1845.8,4.29085]
[1746213464666,1.083,1845.9,1845.8,1.08305]
[1746213464966,1.50349819,1845.9,1845.8,3.58605]
[1746213465575,1.50354118,1845.9,1845.8,3.58605]
[1746213468975,2.30034118,1845.9,1845.8,3.58605]
[1746213470277,2.30034118,1845.9,1845.8,6.79385]
[1746213470576,0.42054118,1845.9,1845.8,6.79385]
[1746213471581,1.50353118,1845.9,1845.8,6.79385]
[1746213475780,0.42054118,1845.9,1845.8,6.79385]
[1746213479981,0.42054118,1845.9,1845.8,3.58605]
[1746213480579,1.50353118,1845.9,1845.8,3.58605]
[1746213481187,3.09943118,1845.9,1845.8,3.58605]
[1746213481984,3.09943118,1845.9,1845.8,2.503]
[1746213482189,1.08317,1845.6,1845.5,14.06447273]
[1746213482482,1.50371118,1845.6,1845.5,14.06447273]
[1746213483182,3.09961118,1845.6,1845.5,3.2078]
[1746213486587,3.09828951,1845.6,1845.5,3.2078]
[1746213488190,1.08334,1845.3,1845.2,48.41959]
[1746213488391,1.08334,1845.3,1845.2,44.8107]
[1746213488791,1.50255951,1845.3,1845.2,44.8107]
[1746213489186,3.11505951,1845.3,1845.2,44.8107]
[1746213489393,3.11505951,1845.3,1845.2,4.0107]
[1746213489984,3.11505951,1845.3,1845.2,44.8107]
[1746213490189,3.11505951,1845.3,1845.2,3.2078]
[1746213490391,1.08352,1845.0,1844.9,9.2749]
[1746213490598,1.50273951,1845.0,1844.9,51.15848]
[1746213490800,1.50273951,1845.0,1844.9,47.65448]
[1746213491097,1.50273951,1845.0,1844.9,46.5709]
[1746213491397,3.19793951,1845.0,1844.9,47.65448]
[1746213491894,3.19793951,1845.0,1844.9,46.5709]
[1746213492498,3.19793951,1845.0,1844.9,44.8429]
[1746213492797,3.19793951,1845.0,1844.9,5.12648]
[1746213493097,3.19793951,1845.0,1844.9,45.92648]
[1746213494301,3.19793951,1845.0,1844.9,47.58008]
[1746213495101,3.19793951,1845.0,1844.9,46.4965]
[1746213495300,3.19793951,1845.0,1844.9,5.6965]
[1746213495707,3.19793951,1845.0,1844.9,6.78008]
[1746213496000,0.41921951,1845.0,1844.9,6.78008]
[1746213496302,0.41921951,1845.0,1844.9,11.78008]
[1746213496694,1.08336,1845.3,1845.2,1.0834]
[1746213496896,6.32683,1845.4,1845.3,1.08334]
[1746213497195,1.50115618,1845.4,1845.3,3.54404]
[1746213498501,0.41782618,1845.4,1845.3,3.54404]
[1746213499904,1.50110618,1845.4,1845.3,3.54404]
[1746213500301,0.41782618,1845.4,1845.3,3.54404]
[1746213500602,1.50110618,1845.4,1845.3,3.54404]
[1746213500905,0.41782618,1845.4,1845.3,3.54404]
[1746213509205,1.08297,1846.0,1845.9,1.08293]
[1746213509410,3.57647,1846.0,1845.9,1.08293]
[1746213510304,1.08299,1845.9,1845.8,3.46831]
[1746213510503,2.75719,1845.9,1845.8,3.46831]
[1746213511411,2.75719,1845.9,1845.8,1.87195]
[1746213513810,2.75719,1845.9,1845.8,1.08305]
[1746213515213,1.08305,1845.8,1845.7,2.68677]
[1746213515511,2.69495,1845.8,1845.7,1.08307]
[1746213515907,2.69495,1845.8,1845.6,0.8299]
[1746213516207,7.5792,1846.1,1845.6,1.08312]
[1746213516208,3.54441,1845.7,1845.6,1.08312]
[1746213516512,1.08317,1845.6,1845.5,3.2078]
[1746213516806,2.69507,1845.6,1845.5,3.2078]
[1746213517011,2.69507,1845.6,1845.5,4.29102]
[1746213517807,2.69507,1845.6,1845.5,3.2078]
[1746213518015,1.08328,1845.4,1845.3,4.29111]
[1746213518711,3.46038,1845.4,1845.3,4.29111]
[1746213520114,3.46038,1845.4,1845.3,3.2078]
[1746213520411,1.08334,1845.3,1845.2,8.06193697]
[1746213520615,2.71004,1845.3,1845.2,8.06193697]
[1746213520912,2.71004,1845.3,1845.2,9.14533697]
[1746213521111,1.6267,1845.3,1845.2,9.14533697]
[1746213521314,1.87741,1845.4,1845.3,1.08334]
[1746213521509,1.08334,1845.3,1845.2,6.85554]
[1746213521716,2.4208,1845.4,1845.3,1.08334]
[1746213521717,3.50412,1845.4,1845.3,1.08334]
[1746213522117,3.50412,1845.4,1845.3,2.80174]
[1746213522318,1.08327,1845.5,1845.4,1.08327]
[1746213522513,1.08327,1845.5,1845.4,6.00947]
[1746213522711,1.08327,1845.5,1845.4,6.00948]
[1746213522912,2.70997,1845.5,1845.4,6.00948]
[1746213524710,0.8293,1845.6,1845.5,1.08322]
[1746213524911,0.8293,1845.6,1845.5,3.59172]
[1746213526018,1.91247,1845.6,1845.5,3.59172]
[1746213527921,0.8293,1845.6,1845.5,3.59172]
[1746213528221,1.89125,1845.8,1845.7,1.08311]
[1746213529318,2.75642,1845.9,1845.8,1.08305]
[1746213529515,2.75639,1845.9,1845.8,1.08305]
[1746213529919,2.75639,1845.9,1845.8,5.09145]
[1746213531722,1.89116,1846.0,1845.9,1.08299]
[1746213531917,1.89113,1846.0,1845.9,2.68469]
[1746213533222,3.50903,1846.0,1845.9,43.48469]
[1746213533524,3.50903,1846.0,1845.9,42.4017]
[1746213534322,3.50903,1846.0,1845.9,43.48469]
[1746213536325,3.50903,1846.0,1845.9,42.4017]
[1746213536624,3.50903,1846.0,1845.9,43.48469]
[1746213538124,3.50903,1846.0,1845.9,42.4017]
[1746213538325,3.50903,1846.0,1845.9,43.48469]
[1746213538720,2.4261,1846.0,1845.9,43.48469]
[1746213538915,2.4261,1846.0,1845.9,44.32039]
[1746213539625,3.50903,1846.0,1845.9,44.32039]
[1746213540725,3.50903,1846.0,1845.9,43.2374]
[1746213540927,3.50903,1846.0,1845.9,44.32039]
[1746213542525,2.4261,1846.0,1845.9,44.32039]
[1746213542719,1.08291,1846.1,1846.0,1.08293]
[1746213542917,2.79931,1846.1,1846.0,2.72723]
[1746213543123,2.79931,1846.1,1846.0,1.6443]
[1746213545029,2.79931,1846.1,1846.0,2.72723]
[1746213545231,2.79931,1846.1,1846.0,1.6443]
[1746213545925,2.79931,1846.1,1846.0,2.72723]
[1746213546231,2.79931,1846.1,1846.0,1.6443]
[1746213546527,2.79931,1846.1,1846.0,2.72723]
[1746213548631,2.79338,1846.3,1846.2,1.08281]
[1746213550934,1.08281,1846.2,1846.1,3.60772]
[1746213551629,2.79341,1846.3,1846.2,1.08281]
[1746213551931,4.0057,1846.4,1846.1,2.5249]
[1746213552134,6.76882,1846.4,1846.3,1.08276]
[1746213552734,6.76882,1846.4,1846.3,2.76176]
[1746213553036,5.6861,1846.4,1846.3,2.76176]
[1746213553224,2.4783,1846.4,1846.3,2.76176]
[1746213554034,6.79698625,1846.7,1846.3,4.38581]
[1746213554230,2.3959,1846.6,1846.5,1.08259]
[1746213554432,2.3959,1846.6,1846.5,2.79079]
[1746213555429,2.3959,1846.6,1846.5,3.59249]
[1746213555629,1.08264,1846.5,1846.4,5.13797]
[1746213555835,2.67134,1846.5,1846.4,5.13797]
[1746213556030,1.5887,1846.5,1846.4,5.13797]
[1746213556733,2.67134,1846.5,1846.4,5.13797]
[1746213557436,2.67134,1846.5,1846.4,1.93017]
[1746213558738,1.5887,1846.5,1846.4,1.93017]
[1746213558929,1.88982,1846.6,1846.5,1.08264]
[1746213559130,1.88982,1846.6,1846.5,2.74414]
[1746213559429,3.61722,1846.6,1846.5,2.74414]
[1746213560834,3.61722,1846.6,1846.5,1.6615]
[1746213561035,3.61722,1846.6,1846.5,2.74414]
[1746213561535,2.5346,1846.6,1846.5,2.74414]
[1746213561840,1.08256,1846.7,1846.6,1.08258]
[1746213562031,1.08256,1846.7,1846.6,2.4815]
[1746213562434,2.74976,1846.7,1846.6,1.6841]
[1746213562834,1.94149,1846.8,1846.7,1.08252]
[1746213563139,1.94146,1846.8,1846.7,0.8466]
[1746213563340,3.60076,1846.8,1846.7,0.8466]
[1746213564143,2.5183,1846.8,1846.7,1.92912]
[1746213564333,3.60076,1846.8,1846.7,1.92912]
[1746213564530,3.60076,1846.8,1846.7,3.63322]
[1746213566444,3.60076,1846.8,1846.7,2.5507]
[1746213566643,3.60076,1846.8,1846.7,3.63322]
[1746213567345,3.60076,1846.8,1846.7,4.44082]
[1746213567645,3.60076,1846.8,1846.7,3.3583]
[1746213568135,4.29025,1846.9,1846.8,1.08246]
[1746213568338,1.08245,1846.9,1846.8,1.704]
[1746213568541,1.08245,1846.9,1846.8,4.9118]
[1746213569049,0.8311,1847.0,1846.9,1.0824]
[1746213569345,2.78873,1847.1,1846.9,1.0824]
[1746213569346,1.7064,1847.1,1847.0,1.08234]
[1746213569647,4.67139625,1847.3,1847.0,4.8739]
[1746213569841,4.67139625,1847.3,1847.2,4.29003]
[1746213569842,5.29558625,1847.3,1847.2,4.29003]
[1746213570248,5.29558625,1847.3,1847.2,45.09003]
[1746213570446,3.58918625,1847.3,1847.2,45.09003]
[1746213570946,1.08212,1847.4,1847.3,1.08217]
[1746213571147,1.08212,1847.4,1847.3,3.58527]
[1746213572650,7.20877625,1847.5,1847.3,3.58522]
[1746213572840,7.20877625,1847.5,1847.4,1.94441]
[1746213573038,7.20873625,1847.5,1847.4,2.5852]
[1746213573251,7.20873625,1847.5,1847.4,3.66731]
[1746213573750,6.12668625,1847.5,1847.4,3.66731]
[1746213574044,7.20873625,1847.5,1847.4,2.5852]
[1746213574250,7.20873625,1847.5,1847.4,3.66731]
[1746213574455,7.20873625,1847.5,1847.4,2.5852]
[1746213574642,3.58918625,1847.5,1847.4,3.66731]
[1746213574847,3.58918625,1847.5,1847.4,6.87511]
[1746213575048,4.67123625,1847.5,1847.4,6.87511]
[1746213575251,4.67123625,1847.5,1847.4,5.793]
[1746213575450,4.67123625,1847.5,1847.4,2.5852]
[1746213575745,1.08211,1847.4,1847.3,3.495]
[1746213575944,1.08217,1847.3,1847.2,43.3341]
[1746213576952,2.81017,1847.3,1847.2,44.41633]
[1746213577153,2.81017,1847.3,1847.2,47.62413]
[1746213577354,1.08217,1847.3,1847.2,47.62413]
[1746213580058,2.81257,1847.3,1847.2,47.62413]
[1746213580661,2.81257,1847.3,1847.2,44.816]
[1746213581057,2.81257,1847.3,1847.2,44.0078]
[1746213582156,2.81257,1847.3,1847.2,3.2078]
[1746213582556,2.81257,1847.3,1847.2,44.0078]
[1746213582751,2.81257,1847.3,1847.2,3.2078]
[1746213582955,2.81257,1847.3,1847.0,3.2078]
[1746213582956,4.43595,1847.3,1847.0,3.2078]
[1746213583156,1.08229,1847.1,1847.0,3.2078]
[1746213583557,2.79089,1847.1,1847.0,3.2078]
[1746213583760,2.79089,1847.1,1847.0,44.0078]
[1746213584052,2.79089,1847.1,1847.0,3.2078]
[1746213584261,2.79089,1847.1,1847.0,4.29014]
[1746213584462,2.79089,1847.1,1847.0,3.2078]
[1746213584862,2.79089,1847.1,1847.0,4.29014]
[1746213585363,2.79089,1847.1,1847.0,3.2078]
[1746213589767,1.08246,1846.8,1846.7,0.8457]
[1746213589967,1.08246,1846.8,1846.7,3.54092]
[1746213590371,1.08246,1846.8,1846.7,44.34092]
[1746213590570,2.66005,1846.9,1846.8,1.08246]
[1746213590758,2.66005,1846.9,1846.8,2.69516]
[1746213591372,2.66005,1846.9,1846.8,1.6127]
[1746213593473,1.08246,1846.8,1846.7,41.6457]
[1746213593771,3.55056,1846.8,1846.7,41.6457]
[1746213594973,3.55056,1846.8,1846.7,43.325]
[1746213596377,3.55056,1846.8,1846.7,44.40752]
[1746213596673,2.72576,1846.8,1846.7,44.40752]
[1746213598072,1.08245,1846.9,1846.8,1.08246]
[1746213598281,1.08237,1847.0,1846.9,1.0824]
[1746213598479,1.08237,1847.0,1846.9,1.9239]
[1746213598683,1.08237,1847.0,1846.9,3.6302]
[1746213599075,1.91252,1847.3,1847.2,1.08223]
[1746213599268,1.91252,1847.3,1847.2,4.29003]
[1746213599471,1.08229,1847.1,1847.0,6.80162]
[1746213599672,1.08229,1847.1,1847.0,5.13222]
[1746213602080,1.08229,1847.1,1847.0,5.13224]
[1746213603479,1.08229,1847.1,1847.0,4.0499]
[1746213603682,1.08229,1847.1,1847.0,5.13224]
[1746213604681,1.08229,1847.1,1847.0,4.0499]
[1746213604982,1.08229,1847.1,1847.0,3.2078]
[1746213606071,1.0824,1846.9,1846.8,0.8425]
[1746213606276,4.3598,1847.0,1846.9,1.0824]
[1746213608983,4.3598,1847.0,1846.8,0.8425]
[1746213609173,3.4891,1847.0,1846.8,1.92491]
[1746213609584,1.0824,1846.9,1846.8,1.92491]
[1746213611085,1.0824,1846.9,1846.8,1.92494]
[1746213611583,3.494,1847.2,1847.0,1.08233]
[1746213611879,5.91308,1847.4,1847.0,3.2078]
[1746213611880,3.2078,1847.4,1847.0,3.2078]
[1746213612086,9.1395,1847.4,1847.1,1.88903]
[1746213612393,2.67931,1847.3,1847.1,42.68903]
[1746213612684,1.08223,1847.2,1847.1,42.68903]
[1746213612874,1.08223,1847.2,1847.1,44.35323]
[1746213615487,1.5971,1847.3,1847.1,44.35323]
[1746213615488,2.67933,1847.3,1847.2,1.08223]
[1746213615985,2.67933,1847.3,1847.2,2.68603]
[1746213616184,3.11425932,1847.3,1847.2,2.68603]
[1746213616487,3.11425932,1847.3,1847.2,1.6038]
[1746213618182,3.11425932,1847.3,1847.2,2.68603]
[1746213618682,3.11425932,1847.3,1847.2,1.6038]
[1746213618883,3.11425932,1847.3,1847.2,2.68603]
[1746213619083,1.08223,1847.2,1847.1,42.68905]
[1746213619390,3.24015932,1847.2,1847.1,42.68905]
[1746213620182,3.24015932,1847.2,1847.1,44.39535]
[1746213622287,3.24015932,1847.2,1847.1,40.8]
[1746213622586,1.08229,1847.1,1847.0,3.2078]
[1746213622891,4.00551932,1847.1,1847.0,3.2078]
[1746213623190,4.00551932,1847.1,1847.0,44.0078]
[1746213623893,4.00551932,1847.1,1847.0,45.09014]
[1746213624092,4.00551932,1847.1,1847.0,46.77624]
[1746213624585,3.18191932,1847.1,1847.0,46.77624]
[1746213624787,0.43492932,1847.1,1847.0,46.77624]
[1746213625685,1.6426,1847.4,1847.3,1.08217]
[1746213625891,1.08211,1847.4,1847.3,4.28997]
[1746213626593,1.08211,1847.4,1847.3,5.96217]
[1746213627394,6.03398625,1847.5,1847.3,5.96217]
[1746213627588,7.11609625,1847.5,1847.4,2.75431]
[1746213627988,3.58918625,1847.5,1847.4,2.75431]
[1746213628188,4.67123625,1847.5,1847.4,2.75431]
[1746213628789,1.08205,1847.5,1847.4,2.75431]
[1746213628993,2.70325,1847.5,1847.4,2.75431]
[1746213630189,1.08211,1847.4,1847.3,4.28993]
[1746213630388,2.74671,1847.4,1847.3,5.98283]
[1746213631496,1.6646,1847.4,1847.3,5.98283]
[1746213631889,2.74671,1847.4,1847.3,5.98283]
[1746213632094,1.6646,1847.4,1847.3,5.98283]
[1746213632495,2.4808,1847.4,1847.3,5.98283]
[1746213632901,3.493,1847.7,1847.5,1.08205]
[1746213632902,1.08204,1847.6,1847.5,1.08205]
[1746213633097,3.59804,1847.6,1847.5,1.08205]
[1746213635391,1.08205,1847.5,1847.4,2.69037]
[1746213635700,2.77845,1847.5,1847.4,2.69037]
[1746213636093,1.6964,1847.5,1847.4,2.69037]
[1746213636593,2.77845,1847.5,1847.4,2.69037]
[1746213637897,3.20846329,1847.5,1847.4,2.69037]
[1746213638494,3.20846329,1847.5,1847.4,1.6083]
[1746213639498,0.43001329,1847.5,1847.4,2.69041]
[1746213641202,1.51206329,1847.5,1847.4,2.69041]
[1746213641604,0.43001329,1847.5,1847.4,2.69041]
[1746213642297,1.51206329,1847.5,1847.4,2.69041]
[1746213642604,3.18556329,1847.5,1847.4,2.69041]
[1746213642798,2.10351329,1847.5,1847.4,2.69041]
[1746213643297,3.18556329,1847.5,1847.4,2.69041]
[1746213643498,0.43001329,1847.5,1847.4,2.69041]
[1746213644406,1.51206329,1847.5,1847.4,2.69041]
[1746213644604,0.43001329,1847.5,1847.4,2.69041]
[1746213652911,2.93711329,1847.5,1847.4,2.69041]
[1746213654612,2.09771329,1847.5,1847.4,2.69041]
[1746213654911,0.43001329,1847.5,1847.4,2.69041]
[1746213658512,0.43001329,1847.5,1847.4,6.18141]
[1746213661611,0.43001329,1847.5,1847.4,13.39734697]
[1746213662916,0.43001329,1847.5,1847.4,13.82396785]
[1746213663620,1.6591,1847.7,1847.6,1.08199]
[1746213663822,1.6591,1847.7,1847.6,4.28979]
[1746213664315,1.6591,1847.7,1847.6,6.02179]
[1746213666217,0.8335,1847.9,1847.8,1.08188]
[1746213666516,0.8335,1847.9,1847.8,4.28968]
[1746213666914,0.8335,1847.9,1847.8,5.10068]
[1746213667218,4.67087625,1848.2,1848.1,1.0817]
[1746213667422,6.37347625,1848.2,1848.1,4.2895]
[1746213668813,2.78429,1848.2,1848.1,4.2895]
[1746213673720,1.7026,1848.2,1848.1,4.2895]
[1746213674222,3.4002,1848.2,1848.1,4.2895]
[1746213675227,4.48184,1848.2,1848.1,4.2895]
[1746213675421,3.4002,1848.2,1848.1,4.2895]
[1746213675931,3.82657485,1848.2,1848.1,5.1077]
[1746213676528,4.90821485,1848.2,1848.1,5.1077]
[1746213676730,3.82657485,1848.2,1848.1,5.1077]
[1746213677026,3.82657485,1848.2,1848.1,45.9077]
[1746213677423,0.42637485,1848.2,1848.1,45.9077]
[1746213677619,0.42637485,1848.2,1848.1,46.7046]
[1746213677819,0.42637485,1848.2,1848.1,48.4539]
[1746213678221,2.82799,1848.5,1848.4,1.08152]
[1746213678421,2.82799,1848.5,1848.4,4.28932]
[1746213678824,1.7465,1848.5,1848.4,4.28932]
[1746213679021,5.52049625,1848.6,1848.5,1.08147]
[1746213679329,5.52049625,1848.6,1848.5,2.70497]
[1746213679623,4.43908625,1848.6,1848.5,2.70497]
[1746213681027,5.52049625,1848.6,1848.5,2.70497]
[1746213681326,7.16669625,1848.6,1848.5,2.70497]
[1746213682528,1.08147,1848.5,1848.4,3.2078]
[1746213682728,2.72767,1848.5,1848.4,4.28932]
[1746213686627,1.6462,1848.5,1848.4,4.28932]
[1746213686828,2.72767,1848.5,1848.4,4.28932]
[1746213687833,2.72767,1848.5,1848.4,1.08152]
[1746213688327,2.72767,1848.5,1848.3,5.237]
[1746213688328,1.08152,1848.4,1848.3,2.82853]
[1746213688532,3.51562,1848.4,1848.3,2.82853]
[1746213689532,2.4341,1848.4,1848.3,2.82853]
[1746213690330,1.08151,1848.5,1848.4,1.08152]
[1746213690532,3.09143061,1848.5,1848.4,1.08152]
[1746213691033,2.00992061,1848.5,1848.4,4.28932]
[1746213691221,2.00992061,1848.5,1848.4,5.08042]
[1746213691425,0.42142061,1848.5,1848.4,5.08042]
[1746213691626,0.42142061,1848.5,1848.4,6.73372]
[1746213693333,1.50289061,1848.5,1848.4,6.73372]
[1746213695433,3.09679061,1848.5,1848.4,6.73372]
[1746213699129,2.01532061,1848.5,1848.4,6.73372]
[1746213699324,0.42142061,1848.5,1848.4,6.73372]
[1746213699735,1.50289061,1848.5,1848.4,6.73372]
[1746213700033,0.42142061,1848.5,1848.4,6.73372]
[1746213703232,3.63207,1848.9,1848.4,5.6522]
[1746213703538,3.63207,1848.9,1848.8,1.08129]
[1746213703731,1.08129,1848.8,1848.7,4.2891]
[1746213703933,1.08129,1848.8,1848.7,6.0135]
[1746213705741,1.92187,1848.9,1848.8,1.08129]
[1746213705941,1.08127,1848.9,1848.8,1.08129]
[1746213706129,1.7219,1849.0,1848.7,4.9322]
[1746213706130,2.80311,1849.0,1848.9,1.08123]
[1746213706329,1.89596,1849.1,1849.0,1.08117]
[1746213706640,0.8148,1849.1,1849.0,1.08117]
[1746213706839,1.08116,1849.1,1849.0,1.08113]
[1746213707028,1.08116,1849.1,1849.0,2.74803]
[1746213707640,1.08099,1849.4,1849.3,1.08098]
[1746213708144,1.08101,1849.3,1849.2,1.08101]
[1746213708536,1.08101,1849.3,1849.2,1.081]
[1746213708940,1.08101,1849.3,1849.2,41.881]
[1746213709340,1.08101,1849.3,1849.2,40.8]
[1746213709640,1.93961,1849.3,1849.2,40.8]
[1746213710142,1.93961,1849.3,1849.2,41.88106]
[1746213710642,1.93961,1849.3,1849.2,40.8]
[1746213711144,1.93961,1849.3,1849.2,41.88106]
[1746213711346,1.93961,1849.3,1849.2,40.8]
[1746213715451,2.35675227,1849.3,1849.2,40.8]
[1746213717540,1.49815227,1849.3,1849.2,41.88106]
[1746213720546,1.504726,1849.3,1849.2,41.88106]
[1746213720745,1.504726,1849.3,1849.2,40.8]
[1746213720950,1.504726,1849.3,1849.1,5.13058]
[1746213720951,1.08106,1849.2,1849.1,3.2078]
[1746213721140,4.07230227,1849.2,1849.1,4.28892]
[1746213722334,2.33820227,1849.2,1849.1,4.28892]
[1746213722543,1.49820227,1849.2,1849.1,4.28892]
[1746213722939,1.49820227,1849.2,1849.1,5.95252]
[1746213727844,0.41714227,1849.2,1849.1,5.95252]
[1746213728049,1.49820227,1849.2,1849.1,5.95252]
[1746213729342,1.49820227,1849.2,1849.1,4.8714]
[1746213730048,1.49820227,1849.2,1849.1,5.95252]
[1746213731349,1.49820227,1849.2,1849.1,4.8714]
[1746213731547,3.16960227,1849.2,1849.1,4.8714]
[1746213731750,3.16960227,1849.2,1849.1,5.95252]
[1746213731943,0.41714227,1849.2,1849.1,5.95252]
[1746213734049,1.08086,1849.6,1849.5,1.08084]
[1746213734651,1.08088,1849.5,1849.4,6.81292]
[1746213734843,1.08088,1849.5,1849.4,3.2078]
[1746213735042,1.08088,1849.5,1849.4,44.0078]
[1746213735246,4.77688,1849.5,1849.4,44.0078]
[1746213735544,6.48618,1849.5,1849.4,44.0078]
[1746213736148,6.48618,1849.5,1849.4,3.2078]
[1746213738967,5.62518,1849.5,1849.4,4.8541]
[1746213740764,5.62518,1849.5,1849.4,3.2078]
[1746213743263,1.08094,1849.4,1849.3,4.9515]
[1746213743459,2.80424,1849.4,1849.3,4.9515]
[1746213743659,2.80424,1849.4,1849.1,3.2078]
[1746213743660,1.08106,1849.2,1849.1,3.2078]
[1746213744365,3.60456,1849.2,1849.1,3.2078]
[1746213744766,3.60456,1849.2,1849.1,4.28892]
[1746213744965,3.60456,1849.2,1849.1,6.03262]